[Event "Romanian Team Rapid Women 2022"]
[Site "Sebes"]
[Date "2022.12.03"]
[Round "3.2"]
[White "Cosma, Elena-Luminita"]
[Black "Visanescu, Daria-Ioana"]
[Result "1-0"]
[ECO "E09"]
[WhiteElo "2244"]
[BlackElo "2117"]
[Annotator "TA"]
[PlyCount "79"]
[EventDate "2022.12.03"]
[EventType "rapid"]
[EventCountry "ROU"]
[SourceTitle "playchess.com"]
[Source "ChessBase"]
[SourceQuality "1"]
[TimeControl "900+10"]

{[%evp 22,79,37,50,34,58,57,49,59,55,75,79,76,62,163,155,133,136,148,138,136,156,146,143,191,190,259,255,292,264,265,270,261,263,265,258,268,297,528,516,493,437,574,555,520,419,506,397,635,635,633,620,990,1037,1370,1308,5516,594,567,535]} 1. d4 {[%emt 0:00:02]} d5 {[%emt 0:00:01]} 2. Nf3 {[%emt 0:00:01]} Nf6 {[%emt 0:00:03]} 3. g3 {[%emt 0:00:01]} e6 {[%emt 0:00:03]} 4. Bg2 {[%emt 0:00:01]} Be7 {[%emt 0:00:01]} 5. O-O {[%emt 0:00:01]} O-O {[%emt 0:00:04]} 6. c4 {[%emt 0:00:02]} c6 {[%emt 0:00:11]} 7. Qc2 {[%emt 0:00:05]} Nbd7 {[%emt 0:00:11][%cal Bb8d7,Bd7f6,Bf6d5][%mdl 32]} 8. Nbd2 {[%emt 0:00:02]} b6 {[%emt 0:00:12]} 9. e4 {[%emt 0:00:08]} dxe4 {[%emt 0:00:52]} 10. Nxe4 {[%emt 0:00:02]} Nxe4 {[%emt 0:00:21]} 11. Qxe4 {[%emt 0:00:02]} Bb7 {[%emt 0:00:02]} 12. Bf4 {[%emt 0:00:47]} Nf6 {[%emt 0:00:19] E09: Closed Catalan: Main Line: 7 Qc2 c6 8 Nbd2.} 13. Qe2 {[%emt 0:00:11]} Qc8 {[%emt 0:02:24]} 14. Rfd1 {[%emt 0:00:39]} Re8 {[%emt 0:01:29] White is slightly better.} 15. Bh3 {[%emt 0:02:20]} Ba6 {[%emt 0:01:48]} 16. Ne5 {[%emt 0:00:15] [#]} Nd5 $146 {[%emt 0:01:25]} ({Predecessor:} 16... Bd6 17. Rac1 Nd7 18. Bg2 Nxe5 19. Bxe5 Qc7 20. Qe4 Rac8 21. c5 Bxe5 22. dxe5 bxc5 23. Rxc5 {1-0 (40) Gonzalez Zamora,J (2544)-Boydia,S (2068) Tromsoe 2014}) 17. Bd2 {[%emt 0:01:38] Strongly threatening Qh5.} f6 {[%emt 0:04:08] [#]} ({Better is} 17... Bf6 $14) 18. Nxc6 $1 $18 {[%emt 0:01:08][%mdl 512]} Bf8 {[%emt 0:00:14] [#]} 19. Re1 $1 {[%emt 0:02:20][%cal Ob2b3] White has more active pieces.} Qxc6 {[%emt 0:00:57]} 20. cxd5 {[%emt 0:00:04][%mdl 64] Discovered Attack} Bxe2 {[%emt 0:01:59]} 21. dxc6 {[%emt 0:00:02]} Bc4 {[%emt 0:00:10]} 22. Bg2 $36 {[%emt 0:00:01][%mdl 2048] White has strong initiative.} Rac8 {[%emt 0:00:14]} (22... Kf7 $16 23. a4 Bd6) 23. b3 {[%emt 0:01:00]} Bb5 {[%emt 0:00:28]} (23... Bd3 $142 24. d5 Bf5) 24. d5 {[%emt 0:00:32]} Bd6 {[%emt 0:01:06]} 25. a4 {[%emt 0:00:22]} (25. Rxe6 $6 Rxe6 26. dxe6 Kf8 $18) 25... Bd3 {[%emt 0:00:12]} 26. dxe6 {[%emt 0:00:35]} (26. Rxe6 Rxe6 27. dxe6 Kf8 $18) 26... Be5 {[%emt 0:00:15]} 27. Ra2 {[%emt 0:00:25]} Bf5 {[%emt 0:00:06]} 28. Bf4 {[%emt 0:00:45]} Bc3 {[%emt 0:00:23]} 29. Rc1 {[%emt 0:00:15]} Bd4 {[%emt 0:00:03]} (29... Bb4 {keeps fighting.} 30. c7 (30. Rc4 Bc5 $16) 30... g5) 30. Rd2 {[%emt 0:00:23]} Bc5 {[%emt 0:00:10]} 31. Bd6 {[%emt 0:00:49]} Rxe6 {[%emt 0:00:17]} 32. Bxc5 {[%emt 0:00:04]} bxc5 {[%emt 0:00:01]} 33. h4 {[%emt 0:00:17]} (33. Rxc5 {leads to mate.} Re1+ 34. Bf1 Bh3) 33... Re5 {[%emt 0:00:15]} 34. Kh2 {[%emt 0:00:18]} Be6 {[%emt 0:00:14]} (34... Be4 $142 35. f4 Re6 36. Bxe4 (36. Rxc5 Rexc6 37. Rxc6 Bxc6 $16) 36... Rxe4 37. Rxc5 Kf7 38. Rd7+ Re7) 35. f4 {[%emt 0:00:41] White is clearly winning.} Re3 {[%emt 0:00:04]} 36. Rxc5 {[%emt 0:00:05]} Bxb3 {[%emt 0:00:28]} 37. c7 {[%emt 0:00:30] And now Rd8+ would win.} Be6 {[%emt 0:00:00]} 38. Bb7 {[%emt 0:00:31]} Re8 {[%emt 0:00:09]} 39. c8=Q {[%emt 0:00:26]} (39. Bd5 $142 {Threatening mate with Bxe6+.} Bxd5 40. Rdxd5 Re2+ 41. Kh3) 39... Bxc8 {[%emt 0:00:05]} 40. Rxc8 {[%emt 0:00:05] Black got outplayed after the opening.   Weighted Error Value: White=0.35/Black=0.59} 1-0

[Event "Romanian Team Rapid Women 2022"]
[Site "Sebes"]
[Date "2022.12.03"]
[Round "3.3"]
[White "Bucur, Denisa-Andreea"]
[Black "Ciolacu, Alessia-Mihaela"]
[Result "0-1"]
[ECO "C47"]
[WhiteElo "1953"]
[BlackElo "2097"]
[Annotator "TA"]
[PlyCount "46"]
[EventDate "2022.12.03"]
[EventType "rapid"]
[EventCountry "ROU"]
[SourceTitle "playchess.com"]
[Source "ChessBase"]
[SourceQuality "1"]
[TimeControl "900+10"]

{[%evp 9,46,10,34,15,88,16,12,19,6,0,16,16,24,12,23,9,41,40,50,-81,-49,-77,-76,-79,-82,-75,-75,-140,-139,-295,-290,-315,-315,-317,-311,-580,-423,-29988,-29989]} 1. e4 {[%emt 0:00:03]} e5 {[%emt 0:00:29]} 2. Nf3 {[%emt 0:00:03]} Nc6 {[%emt 0:00:02]} 3. Nc3 {[%emt 0:00:03]} Nf6 {[%emt 0:00:21]} 4. a3 {[%emt 0:00:05]} Be7 {[%emt 0:02:05]} 5. d4 {[%emt 0:00:08]} exd4 {[%emt 0:01:20]} 6. Nxd4 {[%emt 0:00:02] C47: Scotch Four Knights and Four Knights with 4 g3.} d5 {[%emt 0:00:07] [#]} (6... O-O $11) 7. exd5 $146 {[%emt 0:04:51]} (7. Bb5 $16 {Black must now prevent exd5.} Qd7 8. e5) ({Predecessor:} 7. Nxc6 bxc6 8. Bd3 dxe4 9. Nxe4 Nxe4 10. Bxe4 Qxd1+ 11. Kxd1 Bd7 12. Bf4 O-O-O 13. Kc1 {½-½ (63) Garcia Guerrero,I (2338)-Baker,C (2227) Chess.com INT 2021}) 7... Nxd5 $11 {[%emt 0:00:18]} 8. Nxc6 {[%emt 0:01:02] The position is equal.} bxc6 {[%emt 0:00:04]} 9. Ne4 {[%emt 0:01:46]} Bf5 {[%emt 0:01:41]} 10. Bd3 {[%emt 0:00:26]} Qd7 {[%emt 0:00:22]} 11. O-O {[%emt 0:00:28]} O-O {[%emt 0:00:06]} 12. h3 {[%emt 0:02:08]} Rad8 {[%emt 0:00:33]} 13. Qf3 {[%emt 0:00:09]} Bg6 {[%emt 0:00:26]} 14. b3 {[%emt 0:00:35]} (14. Bd2 $14 {keeps the upper hand.}) 14... f5 $17 {[%emt 0:02:23]} 15. Ng3 {[%emt 0:02:42] [#]} Bf6 {[%emt 0:00:04] Against Bb2} 16. Rb1 {[%emt 0:00:45][%cal Oc1d2]} Nc3 {[%emt 0:00:07]} 17. Rb2 {[%emt 0:01:04]} f4 {[%emt 0:00:42]} 18. Nh5 {[%emt 0:00:37] [#]} (18. Ne2 $142) 18... Be5 $1 {[%emt 0:02:36] Black is more active.} ({And not} 18... Bxd3 19. cxd3 Nb5 20. Nxf6+ Rxf6 21. b4 $17) 19. Bc4+ $2 {[%emt 0:00:24] This costs White the game.} (19. Re1 $17 Rde8 20. a4 (20. Bxf4 $2 {too greedy.} Bd4 $19) (20. Nxf4 $2 Nd5 $17)) 19... Kh8 $19 {[%emt 0:00:40]} 20. Nxf4 {[%emt 0:00:03]} Be4 {[%emt 0:00:06]} 21. Qg3 {[%emt 0:00:41][%cal Of4g6]} Qf5 {[%emt 0:00:23] Against Ng6+} 22. Be6 $2 {[%emt 0:00:03]} (22. f3 Bd5 23. Re1 Bxf4 24. Bxf4 Qxf4 25. Qxf4 Rxf4 26. Re7) 22... Qf6 {[%emt 0:00:12][%cal Re5f4]} 23. Nh5 {[%emt 0:00:38]} (23. Bc4 $19 Bd5 24. Bd3 Bxf4 25. Bxf4 Qxf4 26. Qxf4 Rxf4 27. Re1) 23... Ne2+ {[%emt 0:00:03][%mdl 64] Discovered Attack, Double Attack.   Weighted Error Value: White=0.84/Black=0.27 (precise)} 0-1

[Event "Romanian Team Rapid Women 2022"]
[Site "Sebes"]
[Date "2022.12.03"]
[Round "3.4"]
[White "Sariteanu, Sabina"]
[Black "Peptan, Corina-Isabela"]
[Result "0-1"]
[ECO "A09"]
[WhiteElo "1752"]
[BlackElo "2351"]
[Annotator "TA"]
[PlyCount "111"]
[EventDate "2022.12.03"]
[EventType "rapid"]
[EventCountry "ROU"]
[SourceTitle "playchess.com"]
[Source "ChessBase"]
[SourceQuality "1"]
[TimeControl "900+10"]

{[%evp 11,111,-3,0,0,30,-115,-70,-88,-62,-102,-66,-111,-74,-103,-58,-149,-137,-155,-150,-183,-181,-222,-210,-228,-225,-263,-251,-253,-255,-288,-291,-252,-253,-258,-191,-184,-190,-196,-160,-203,-189,-206,-208,-202,-201,-203,-208,-201,-94,-165,-165,-201,-176,-176,-172,-176,-178,-185,0,-145,0,-173,-165,-171,-169,-182,-183,-202,-186,-187,-168,-299,-299,-377,-373,-391,-385,-483,-483,-608,-459,-474,-412,-691,-650,-29973,-29974,-29983,-29984,-29983,-5078,-6000,-6000,-1506,-2168,-29988,-29986,-29989,-29978,-29989,-29990,-29990]} 1. Nf3 {[%emt 0:00:02]} d5 {[%emt 0:00:03]} 2. c4 {[%emt 0:00:03]} d4 {[%emt 0:00:10]} 3. g3 {[%emt 0:00:07]} Nf6 {[%emt 0:00:03]} 4. Bg2 {[%emt 0:00:08]} Nc6 {[%emt 0:00:04]} 5. d3 {[%emt 0:00:02]} e5 {[%emt 0:00:07]} 6. O-O {[%emt 0:00:03]} a5 {[%emt 0:00:51]} 7. e3 {[%emt 0:00:03] A09: Réti Opening: 1 Nf3 d5 2 c4.} Be7 {[%emt 0:00:56] [#]} 8. e4 $146 {[%emt 0:00:02]} (8. exd4 $11 {keeps the balance.} exd4 9. Na3) ({Predecessor:} 8. exd4 exd4 9. Bf4 Nd7 10. Na3 Nc5 11. Nb5 Ne6 12. Bd2 O-O 13. Re1 Nb4 14. Bxb4 axb4 15. Nbxd4 Nxd4 16. Nxd4 {0-1 (39) Dvirnyy,D (2514)-Vasquez Schroder,R (2520) Santiago de Compostela 2022}) 8... O-O {[%emt 0:00:24]} 9. b3 {[%emt 0:00:39] Black is slightly better.} h6 {[%emt 0:00:20]} 10. a3 {[%emt 0:00:22]} Be6 {[%emt 0:00:11]} 11. Nfd2 {[%emt 0:00:12]} Qc8 {[%emt 0:00:34]} 12. f4 {[%emt 0:00:05]} Ng4 {[%emt 0:01:52] Strongly threatening ...Ne3.} 13. f5 {[%emt 0:00:53]} ({White should play} 13. Nf3 $15) 13... Ne3 $1 $36 {[%emt 0:00:05][%csl LRd1,LRf1][%mdl 2048] Keeping White busy.} 14. Qh5 {[%emt 0:00:03]} Nxf1 {[%emt 0:00:45] Black is much more active.} 15. Nxf1 {[%emt 0:00:06]} Bd7 {[%emt 0:00:01]} 16. g4 {[%emt 0:00:05]} Qd8 {[%emt 0:00:02]} 17. Nbd2 {[%emt 0:00:12]} Bg5 {[%emt 0:01:37]} 18. Nf3 {[%emt 0:00:03][%cal Rc1g5]} Bxc1 {[%emt 0:00:03]} 19. Rxc1 {[%emt 0:00:02]} f6 {[%emt 0:00:09] Prevents g5.} 20. Qh3 {[%emt 0:01:16]} Qe7 {[%emt 0:00:09]} 21. Ra1 {[%emt 0:00:17]} Ra6 {[%emt 0:00:13]} 22. Qg3 {[%emt 0:00:03]} Rb6 {[%emt 0:00:04]} 23. N1d2 {[%emt 0:00:02]} Be8 {[%emt 0:03:12]} 24. h4 {[%emt 0:00:03]} g6 {[%emt 0:00:18]} 25. Kf2 {[%emt 0:05:18]} Kh7 {[%emt 0:00:34]} 26. Bh3 {[%emt 0:01:11]} g5 {[%emt 0:00:45]} 27. Bf1 {[%emt 0:00:45]} gxh4 {[%emt 0:01:38]} 28. Qxh4 {[%emt 0:00:13]} Nd8 {[%emt 0:00:29][%cal Bc6d8,Bd8f7,Bf7g5][%mdl 32] Prevents c5.} 29. Be2 {[%emt 0:00:08]} Qg7 {[%emt 0:00:09]} (29... Nf7 $19 {has better winning chances.} 30. Ke1 Rh8) 30. Rg1 {[%emt 0:00:19] [#]} (30. Nxe5 $17 fxe5 31. Qxd8) 30... Nf7 $1 $19 {[%emt 0:00:02]} 31. Bd1 {[%emt 0:01:35]} c5 {[%emt 0:00:49][%cal Oa5a4]} 32. a4 {[%emt 0:00:21]} Rg8 {[%emt 0:00:05]} 33. Nf1 {[%emt 0:00:29]} Ng5 {[%emt 0:00:23]} 34. N1d2 {[%emt 0:00:12]} Qf8 $2 {[%emt 0:00:51]} ({Better is} 34... Rh8 $19 {...Kg8 is the strong threat.} 35. Rh1 Kg8) 35. Rh1 {[%emt 0:00:06] [#]} (35. Nxg5+ $1 $11 Rxg5 36. Nf3) 35... Qg7 {[%emt 0:00:17]} (35... Nf7 $1 $17 36. Qh5 Qg7) 36. Rh2 $2 {[%emt 0:00:03]} (36. Rg1 $1 $11) 36... Nf7 {[%emt 0:00:16]} 37. Rg2 {[%emt 0:00:14]} Rh8 {[%emt 0:00:06]} 38. Nf1 {[%emt 0:01:18]} Kg8 {[%emt 0:00:07]} 39. N1d2 {[%emt 0:00:39]} Ng5 {[%emt 0:00:06]} 40. Rh2 {[%emt 0:00:14]} h5 {[%emt 0:00:16]} 41. Qg3 {[%emt 0:01:18]} (41. Nxg5 $142 fxg5 42. Qg3) 41... Nxf3 {[%emt 0:00:37]} 42. Bxf3 {[%emt 0:00:07]} hxg4 {[%emt 0:01:07]} 43. Rxh8+ {[%emt 0:00:06]} Qxh8 {[%emt 0:00:02]} 44. Qxg4+ {[%emt 0:01:15]} Kf8 {[%emt 0:00:01]} 45. Bd1 {[%emt 0:00:30]} Qh2+ {[%emt 0:00:30]} 46. Qg2 {[%emt 0:00:11]} Qf4+ {[%emt 0:00:14]} ({But not} 46... Qh6 $2 47. Ke1 $19) 47. Kg1 {[%emt 0:00:28]} (47. Ke1 $142 Bxa4 48. Bc2) 47... Qe3+ {[%emt 0:00:21]} 48. Kh1 {[%emt 0:00:33]} Qe1+ {[%emt 0:00:13]} 49. Kh2 {[%emt 0:00:29]} Qxd1 {[%emt 0:00:05]} 50. Qf2 {[%emt 0:00:08]} Qh5+ {[%emt 0:00:07]} (50... Rd6 $142 51. Nf3 Qxd3 52. Qg3 Qxe4 53. Nd2 Qxf5 54. Kg1 Bc6 55. Qf2 Qg6+ 56. Kf1 Qc2 57. Qe1 e4 58. Nxe4 Qxe4 59. Qxe4 Bxe4 60. Ke2 f5 61. Kd2 Rg6 62. Kd1 Rg2 63. Kc1 d3 64. Kd1 d2 65. b4 Bf3+ 66. Kc2 d1=Q+ 67. Kc3 cxb4#) 51. Kg2 {[%emt 0:00:03]} Rd6 {[%emt 0:00:07]} 52. Nf3 {[%emt 0:00:05]} Rd7 {[%emt 0:00:01] ( -> ...Rg7+)} 53. Kf1 {[%emt 0:00:06]} Rg7 {[%emt 0:00:14] Black mates.} 54. Ke2 {[%emt 0:00:03]} Qg4 {[%emt 0:00:13]} 55. Kd2 {[%emt 0:00:05]} Bh5 {[%emt 0:00:06]} 56. b4 {[%emt 0:01:05] Weighted Error Value: White=0.67/Black=0.34} 0-1

[Event "Romanian Team Rapid Women 2022"]
[Site "Sebes"]
[Date "2022.12.03"]
[Round "3.5"]
[White "Ionescu, Irina"]
[Black "Chicarosie, Ioana-Bianca"]
[Result "1/2-1/2"]
[ECO "B30"]
[WhiteElo "2119"]
[BlackElo "1815"]
[Annotator "TA"]
[PlyCount "126"]
[EventDate "2022.12.03"]
[EventType "rapid"]
[EventCountry "ROU"]
[SourceTitle "playchess.com"]
[Source "ChessBase"]
[SourceQuality "1"]
[TimeControl "900+10"]

{[%evp 9,126,49,71,33,40,17,51,11,68,68,84,87,157,136,148,122,167,141,166,158,175,166,177,-28,-44,-128,-120,-121,-104,-123,-80,-314,-299,-329,-328,-620,-633,-562,-284,-244,-182,-208,-149,-254,-281,-300,-231,-215,-204,-270,-268,-315,-308,-365,-367,-330,0,-356,-180,-175,-60,-245,-159,-209,-209,-638,-638,-631,-619,-605,-535,-530,-17,-182,-173,-256,-228,-214,-83,-76,-68,-80,-70,-65,0,0,0,0,0,0,0,0,2,-192,-182,-199,-177,-158,-151,-281,-279,-235,-210,-357,-54,-54,-8,-8,0,-54,0,-8,0,-54,0,-8,0,-54,0]} 1. e4 {[%emt 0:00:04]} c5 {[%emt 0:00:02]} 2. Nf3 {[%emt 0:00:04]} Nc6 {[%emt 0:00:02]} 3. Bb5 {[%emt 0:00:07]} e5 {[%emt 0:00:18]} 4. O-O {[%emt 0:00:32] [#]} Qe7 $146 {[%emt 0:01:01]} ({Predecessor:} 4... Nge7 5. Re1 g6 6. d3 Bg7 7. Bg5 h6 8. Bxe7 Nxe7 9. Nc3 O-O 10. Bc4 d6 11. Nd5 Nc6 12. c3 Kh7 13. a4 Be6 14. h3 Rc8 {1-0 (37) Carlsen,M (2859)-Dubov,D (2708) Chess.com INT 2022}) 5. d3 {[%emt 0:00:41]} Nf6 {[%emt 0:00:37]} 6. Bg5 {[%emt 0:00:20] B30: Sicilian: 2...Nc6 3 Bb5, lines without ...g6.} h6 {[%emt 0:00:16]} 7. Bh4 {[%emt 0:00:04]} a6 {[%emt 0:01:28]} 8. Ba4 {[%emt 0:01:21] White is slightly better.} g6 {[%emt 0:02:19]} ({Black should try} 8... g5 $11 9. Bg3 d6) 9. Nc3 $14 {[%emt 0:01:13]} Bg7 {[%emt 0:00:09]} 10. Nd5 {[%emt 0:01:38] Inhibits g5.} Qd6 {[%emt 0:00:04]} (10... Qd8 $142) 11. Nb6 {[%emt 0:00:49]} Rb8 {[%emt 0:00:02][%cal Ba8b8,Bb8b7,Bb7b2,Bb2b4][%mdl 32]} 12. Nc4 {[%emt 0:00:01] Against Na5. White has more active pieces. The black rooks are badly placed.} Qe6 {[%emt 0:00:42]} 13. Bxc6 {[%emt 0:00:20]} bxc6 {[%emt 0:01:11]} 14. Nfxe5 {[%emt 0:01:47]} (14. Ncxe5 g5 $16) 14... O-O {[%emt 0:02:34]} 15. Bg3 $1 {[%emt 0:02:31][%cal Oe5f7] Nxf7! is the strong threat.} Rb7 {[%emt 0:03:12]} 16. h3 $2 {[%emt 0:01:36]} (16. f4 $18) 16... Nh5 $1 $11 {[%emt 0:00:50]} (16... d5 17. Na5 $16) 17. Ng4 {[%emt 0:00:55]} (17. Nf3 $15 Nxg3 18. fxg3) 17... Nxg3 $1 $17 {[%emt 0:00:56]} (17... d5 18. exd5 cxd5 19. Re1 $11) 18. fxg3 {[%emt 0:00:02]} d5 {[%emt 0:00:13] Inhibits e5.} 19. Na5 {[%emt 0:00:10]} Rxb2 {[%emt 0:00:46]} 20. Nb3 $2 {[%emt 0:00:18]} (20. e5 $17 {was worth a try.}) 20... c4 $19 {[%emt 0:00:43]} (20... dxe4 $2 21. Ne3 $19) 21. dxc4 {[%emt 0:01:38]} dxc4 {[%emt 0:00:02]} (21... Qxe4 $2 {is the wrong capture.} 22. cxd5 Bxg4 23. Qxg4 Qxg4 24. hxg4 $19) 22. Nc5 {[%emt 0:02:39]} (22. Nd2 c3 23. Nb3) 22... Qe7 {[%emt 0:00:19]} 23. Na4 {[%emt 0:00:00]} Rb4 {[%emt 0:00:09]} 24. c3 {[%emt 0:00:00]} Rb7 {[%emt 0:00:43]} ({Don't do} 24... Qxe4 25. Nf2 Qe5 26. cxb4 $18) 25. Ne3 {[%emt 0:00:00]} Rd8 {[%emt 0:00:25]} 26. Qc2 {[%emt 0:00:00]} (26. Qe2 $17) 26... Be6 {[%emt 0:00:01]} 27. Rab1 {[%emt 0:00:00]} Rdb8 {[%emt 0:00:20]} 28. Rxb7 {[%emt 0:00:00]} Rxb7 {[%emt 0:00:01]} 29. Rb1 {[%emt 0:00:00]} Rb5 {[%emt 0:00:15] Hoping for ...Qa3.} 30. Kh2 {[%emt 0:00:00]} Be5 {[%emt 0:00:03]} 31. Nf1 {[%emt 0:00:34]} Qa3 {[%emt 0:00:17]} 32. Rd1 {[%emt 0:00:19]} Qe7 $2 {[%emt 0:00:17]} ({Better is} 32... h5 $19 {Strongly threatening ...h4.} 33. Nd2 h4) 33. Qd2 $2 {[%emt 0:00:14][%mdl 8192]} (33. Rb1 $1 $11) 33... Rb8 {[%emt 0:00:07]} (33... h5 $142 {And now ...h4 would win.} 34. Ne3 h4 35. Qd8+ Qxd8 36. Rxd8+ Kh7) 34. Qxh6 {[%emt 0:00:16]} Qa3 {[%emt 0:00:08]} (34... Rb5 $19 {Threatens to win with ...Ra5.} 35. Qc1 Ra5) 35. Nb6 $2 {[%emt 0:00:02]} Qxc3 {[%emt 0:00:15]} (35... Rxb6 $2 {is a self mate.} 36. Rd8+) 36. Nd7 {[%emt 0:00:20] [#]} (36. Qg5 $17 {keeps fighting.}) 36... Bg7 $1 {[%emt 0:00:23] This pair of bishops is nice.} 37. Qe3 {[%emt 0:00:13]} (37. Qg5 Bxd7 38. Rxd7) 37... Qxe3 {[%emt 0:00:00]} 38. Nxe3 {[%emt 0:00:02]} Rd8 {[%emt 0:00:20]} 39. Nc5 {[%emt 0:00:01]} Rxd1 {[%emt 0:00:00]} 40. Nxd1 {[%emt 0:00:02][%mdl 4096] Endgame KBB-KNN} a5 $2 {[%emt 0:00:00]} (40... c3 $19 41. Nxc3 Bxc3 42. Nxe6 fxe6) 41. Na4 $2 {[%emt 0:00:10]} (41. Nxe6 $11 {and White has nothing to worry.} fxe6 42. Ne3) 41... Kf8 {[%emt 0:00:02]} 42. Kg1 {[%emt 0:00:01]} (42. g4 $142) 42... Ke7 {[%emt 0:00:00]} 43. Kf2 {[%emt 0:00:01]} f5 {[%emt 0:00:09]} (43... Kd6 $19 {is more deadly. White must now prevent ...Ke5.} 44. Ke3 Ke5) 44. exf5 $17 {[%emt 0:00:04]} Bxf5 {[%emt 0:00:01]} 45. Ke3 {[%emt 0:00:23] Against Be4} Bc2 {[%emt 0:00:03] Against g4} 46. Ndc3 {[%emt 0:00:02]} c5 {[%emt 0:00:16]} ({Black should play} 46... Bh6+ $15 47. Kd4 Bd3) 47. Kd2 $11 {[%emt 0:00:01]} Bf5 {[%emt 0:00:03]} 48. Nxc5 {[%emt 0:00:05]} Kd6 {[%emt 0:00:30] Against g4} 49. Nb7+ {[%emt 0:00:11]} Kc7 {[%emt 0:00:09]} 50. Nxa5 {[%emt 0:00:02]} Bh6+ {[%emt 0:00:26]} 51. Ke2 $2 {[%emt 0:00:08]} (51. Kd1 $1 $11 {and White stays safe.}) 51... Bd3+ $19 {[%emt 0:00:03]} 52. Kf3 {[%emt 0:00:04]} Kb6 {[%emt 0:00:03]} 53. Nxc4+ {[%emt 0:00:15]} Bxc4 {[%emt 0:00:01]} 54. Ke4 {[%emt 0:00:02]} (54. h4 $17) 54... Bg7 {[%emt 0:00:07]} 55. Nd5+ {[%emt 0:00:19]} Kc5 {[%emt 0:00:05]} 56. Ne7 {[%emt 0:00:08] [#]} (56. Nf4 $142) 56... Bxa2 $2 {[%emt 0:00:23]} (56... Bf7 $1 $19 {aiming for ...Bf6.} 57. a4 Bf6) 57. Kf4 $1 $15 {[%emt 0:00:11][%cal Oh3h4]} Bh6+ {[%emt 0:00:15]} (57... Bb1 $15 {might be stronger.} 58. Kg5 Be4) 58. Ke5 $1 $11 {[%emt 0:00:02]} Bg7+ {[%emt 0:00:02]} (58... Bb1 $11 {should be considered.}) 59. Kf4 $15 {[%emt 0:00:03][%cal Og3g4]} Bh6+ {[%emt 0:00:09]} (59... Kd6 $15 60. Nxg6 Bd5) 60. Ke5 $1 $11 {[%emt 0:00:20]} Bg7+ {[%emt 0:00:19]} (60... g5 $11 {was preferrable.}) 61. Kf4 $15 {[%emt 0:00:05][%cal Oh3h4]} Bh6+ {[%emt 0:00:01]} (61... Bb1 $15 62. Kg5 Kd6 63. Nxg6 Ke6) 62. Ke5 $1 $11 {[%emt 0:00:28]} Bg7+ {[%emt 0:00:01]} (62... Bb1 $11) 63. Kf4 $15 {[%emt 0:00:01]} Bh6+ {[%emt 0:00:24] Quite a comeback for White.   Weighted Error Value: White=0.72/Black=0.47} (63... Bb1 $15 64. Kg5 Bc3) 1/2-1/2

[Event "Romanian Team Rapid Women 2022"]
[Site "Sebes"]
[Date "2022.12.03"]
[Round "3.6"]
[White "Hoanca, Alexia-Ioana"]
[Black "Schiopu, Andreea-Alexandra"]
[Result "1-0"]
[ECO "B12"]
[WhiteElo "1644"]
[BlackElo "1716"]
[Annotator "NA RC COMBH"]
[PlyCount "79"]
[EventDate "2022.12.03"]
[EventType "rapid"]
[EventCountry "ROU"]
[SourceTitle "playchess.com"]
[Source "ChessBase"]
[SourceQuality "1"]
[TimeControl "900+10"]

1. e4 {[%emt 0:00:02]} c6 {[%emt 0:00:02]} 2. d4 {[%emt 0:00:02]} d5 {[%emt 0:00:02]} 3. f3 {[%emt 0:00:01]} dxe4 {[%emt 0:00:46]} 4. fxe4 {[%emt 0:00:01]} Nf6 {[%emt 0:00:18]} 5. e5 {[%emt 0:00:26]} Nd5 {[%emt 0:01:05]} 6. c4 {[%emt 0:00:11]} Nb6 {[%emt 0:00:43]} 7. Nc3 {[%emt 0:00:05]} e6 {[%emt 0:01:02]} 8. Nf3 {[%emt 0:00:20]} Be7 {[%emt 0:00:32]} 9. Be3 {[%emt 0:00:50]} N8d7 {[%emt 0:01:09]} 10. Be2 {[%emt 0:01:33]} Qc7 {[%emt 0:00:09]} 11. Bf4 {[%emt 0:01:57]} O-O {[%emt 0:01:19]} 12. Qd2 {[%emt 0:00:45]} Rd8 {[%emt 0:00:22]} 13. O-O {[%emt 0:00:36]} Nf8 {[%emt 0:00:17]} 14. Rad1 {[%emt 0:01:16]} Bd7 {[%emt 0:04:13]} 15. Bg5 {[%emt 0:02:14]} Be8 {[%emt 0:00:12]} 16. Qf4 {[%emt 0:00:18]} Ng6 {[%emt 0:00:40]} 17. Qe3 {[%emt 0:00:53]} Bxg5 {[%emt 0:00:13]} 18. Qxg5 {[%emt 0:00:03]} Qe7 {[%emt 0:00:08]} 19. Qe3 {[%emt 0:00:39]} Qb4 {[%emt 0:01:08]} 20. b3 {[%emt 0:00:30]} Ne7 {[%emt 0:00:57]} 21. Ne4 {[%emt 0:01:29]} Nf5 {[%emt 0:00:13]} 22. Qf4 {[%emt 0:01:02]} Qa3 {[%emt 0:00:35]} 23. g4 {[%emt 0:01:02]} Ne7 {[%emt 0:00:37]} 24. Bd3 {[%emt 0:00:52]} Ng6 {[%emt 0:00:52]} 25. Qd2 {[%emt 0:00:47]} Nc8 {[%emt 0:00:01]} 26. h4 {[%emt 0:00:09]} Qe7 {[%emt 0:00:07]} 27. g5 {[%emt 0:00:28]} b6 {[%emt 0:00:23]} 28. h5 {[%emt 0:00:28]} Nf8 {[%emt 0:00:01]} 29. Qf4 {[%emt 0:00:34]} Rb8 {[%emt 0:00:43]} 30. Nf6+ {[%emt 0:00:12]} Kh8 {[%emt 0:00:29]} 31. Qe4 {[%emt 0:00:10]} g6 {[%emt 0:00:02]} 32. hxg6 {[%emt 0:00:06]} fxg6 {[%emt 0:00:38]} 33. Kg2 {[%emt 0:00:08]} c5 {[%emt 0:00:16]} 34. d5 {[%emt 0:00:09]} exd5 {[%emt 0:00:03]} 35. cxd5 {[%emt 0:00:01]} Bf7 {[%emt 0:00:27]} 36. e6 {[%emt 0:00:23]} Nd6 {[%emt 0:00:09]} 37. Qe5 {[%emt 0:00:08]} Bxe6 {[%emt 0:00:16]} 38. dxe6 {[%emt 0:00:12]} Qg7 {[%emt 0:00:03]} 39. Rh1 {[%emt 0:00:10]} Ne8 {[%emt 0:00:06]} 40. e7 {[%emt 0:00:38]} 1-0